bitfinex-derivatives/quotes_ETHF0:USTF0_20250918
["timestamp","ask_amount","ask_price","bid_price","bid_amount"]
[1758206732391,3.95861093,4601.6,4601.5,1.703]
[1758206732579,3.4298,4601.6,4601.5,1.703]
[1758206733180,4.19244277,4601.6,4601.5,1.2795]
[1758206733375,4.19244277,4601.6,4601.5,0.8868]
[1758206734184,8.19244277,4601.6,4600.7,2.828]
[1758206734491,3.2078,4600.8,4600.7,2.828]
[1758206734785,4.19244277,4600.8,4600.7,2.1951]
[1758206735381,4.19244277,4600.8,4600.7,0.0217]
[1758206735582,4.19244277,4600.8,4600.7,0.6361]
[1758206735788,3.97044277,4600.8,4600.7,0.6361]
[1758206735988,4.19244277,4600.8,4600.7,0.6361]
[1758206736890,4.19244277,4600.8,4600.7,0.0217]
[1758206737491,4.19244277,4600.8,4600.6,0.6144]
[1758206737695,0.76264277,4600.7,4600.6,0.6144]
[1758206738085,0.75012701,4600.7,4600.6,1.4447]
[1758206738391,3.2078,4600.8,4600.7,0.6144]
[1758206738593,3.4298,4600.8,4600.7,1.4447]
[1758206738789,3.95604179,4600.8,4600.7,1.4447]
[1758206738988,0.74824179,4600.8,4600.7,1.4447]
[1758206739293,0.222,4600.8,4600.7,1.4447]
[1758206740387,3.4298,4600.8,4600.7,1.4447]
[1758206740590,4.18965326,4600.8,4600.7,0.6144]
[1758206741091,3.96765326,4600.8,4600.7,0.6144]
[1758206741388,3.95577759,4600.8,4600.7,1.0272]
[1758206741895,3.95577759,4600.8,4600.7,0.6144]
[1758206742390,7.95577759,4600.8,4600.5,0.2539]
[1758206742596,4.75974354,4600.7,4600.5,0.2539]
[1758206742797,0.98174354,4600.6,4600.0,0.8683]
[1758206742989,3.2078,4600.1,4600.0,0.8683]
[1758206743190,39.4074813,4600.1,4599.4,0.6144]
[1758206743484,3.2078,4599.6,4598.5,0.2427]
[1758206743687,4.1894813,4599.6,4599.5,3.0417]
[1758206744092,4.1894813,4599.6,4599.5,0.8683]
[1758206744290,3.2078,4599.6,4599.5,1.6986]
[1758206744493,3.4298,4599.6,4599.5,1.6986]
[1758206744792,0.222,4599.6,4599.5,1.6986]
[1758206745594,35.218,4600.1,4600.0,1.6874]
[1758206745900,35.44,4600.1,4600.0,1.6874]
[1758206746489,35.44,4600.1,4600.0,0.8571]
[1758206746795,39.96488739,4600.1,4600.0,0.2427]
[1758206746994,35.218,4600.1,4600.0,1.2699]
[1758206747196,35.44,4600.1,4600.0,1.2699]
[1758206748896,35.218,4600.1,4600.0,1.2699]
[1758206749095,35.218,4600.1,4600.0,1.6874]
[1758206749291,35.44,4600.1,4600.0,1.6874]
[1758206749899,3.2078,4600.2,4600.0,1.073]
[1758206750098,3.2078,4600.2,4600.1,0.6144]
[1758206750300,3.4298,4600.2,4600.1,1.4447]
[1758206750698,35.224,4600.5,4600.1,0.8303]
[1758206750893,35.224,4600.5,4600.4,0.8303]
[1758206751099,35.446,4600.5,4600.4,1.4447]
[1758206751604,35.224,4600.5,4600.4,1.4447]
[1758206751801,35.446,4600.5,4600.4,1.4447]
[1758206752197,35.224,4600.5,4600.4,1.4447]
[1758206752401,35.224,4600.5,4600.4,5.4447]
[1758206752596,35.446,4600.5,4600.4,5.4447]
[1758206754599,35.446,4600.5,4600.4,1.4447]
[1758206756194,35.446,4600.5,4600.4,0.6144]
[1758206756400,40.20633841,4600.5,4600.1,0.6144]
[1758206756705,0.76034319,4600.4,4600.0,0.2427]
[1758206756902,0.98234319,4600.3,4600.0,0.6555]
[1758206757102,0.52626005,4600.2,4600.1,1.0272]
[1758206758103,0.76049928,4600.2,4600.1,1.0272]
[1758206758308,0.98249928,4600.2,4600.1,0.6144]
[1758206758510,0.98249928,4600.2,4600.1,1.0237]
[1758206758801,0.98249928,4600.2,4600.1,1.4246]
[1758206759207,0.76049928,4600.2,4600.1,1.4246]
[1758206759405,0.74826005,4600.2,4600.1,1.4246]
[1758206759597,0.222,4600.2,4600.1,1.4246]
[1758206763303,0.74954507,4600.2,4600.1,1.4246]
[1758206763508,0.98383177,4600.2,4600.1,1.4246]
[1758206763708,4.19163177,4600.2,4600.0,0.2427]
[1758206763907,0.76183177,4600.1,4600.0,0.2427]
[1758206764103,0.76183177,4600.1,4600.0,1.0529]
[1758206764308,0.98383177,4600.1,4600.0,1.6436]
[1758206765308,0.74954507,4600.1,4600.0,1.6436]
[1758206765613,0.6229,4601.7,4600.5,0.232]
[1758206765816,1.6471,4601.5,4601.4,0.3948]
[1758206766115,1.6471,4601.5,4601.4,1.4078]
[1758206766116,2.63108748,4601.5,4601.4,1.4078]
[1758206766312,2.37748748,4601.5,4601.4,1.4078]
[1758206766508,2.15548748,4601.5,4601.4,1.4078]
[1758206766811,2.37748748,4601.5,4601.4,1.4078]
[1758206767213,0.7706,4601.0,4600.9,0.3948]
[1758206767526,1.3935,4601.8,4601.7,0.7954]
[1758206767715,0.9845228,4601.8,4601.7,1.4078]
[1758206768016,0.223,4601.8,4601.7,1.4078]
[1758206768408,35.224,4602.0,4601.9,0.7954]
[1758206768615,35.224,4602.0,4601.9,1.4078]
[1758206768816,35.448,4602.0,4601.9,1.4078]
[1758206769215,35.8301,4602.0,4601.9,1.4078]
[1758206769517,36.4722,4602.0,4601.4,3.8202]
[1758206769817,1.3935,4601.5,4601.4,1.4078]
[1758206770011,1.6175,4601.5,4601.4,1.4078]
[1758206771314,0.3821,4601.1,4601.0,3.1806]
[1758206771519,1.228,4601.1,4601.0,3.5812]
[1758206771817,1.228,4601.1,4601.0,1.4078]
[1758206773215,1.6165,4601.1,4601.0,1.4078]
[1758206773410,0.6229,4600.6,4600.5,2.1734]
[1758206773614,1.6165,4600.6,4600.5,2.1734]
[1758206774020,0.9936,4600.6,4600.5,0.3948]
[1758206774319,1.6165,4600.6,4600.5,0.3948]
[1758206774520,1.6165,4600.6,4600.5,1.4078]
[1758206775022,1.6165,4600.6,4600.5,0.3948]
[1758206775321,1.005,4601.0,4600.9,0.7954]
[1758206775520,0.3821,4601.0,4600.9,1.4078]
[1758206775721,0.6051,4601.0,4600.9,1.4078]
[1758206775923,1.8701,4601.0,4600.5,0.6124]
[1758206776117,1.8701,4601.0,4600.2,3.2078]
[1758206776316,1.8701,4601.0,4600.9,0.3948]
[1758206777018,1.8701,4601.0,4600.6,0.6124]
[1758206777322,0.3821,4600.4,4600.3,1.4078]
[1758206777513,1.6165,4600.4,4600.3,1.4078]
[1758206777818,0.6229,4600.3,4599.7,3.8202]
[1758206778118,0.2536,4600.5,4600.1,0.7954]
[1758206778317,1.75480275,4600.4,4600.3,1.4078]
[1758206779422,1.3935,4599.8,4599.7,3.2078]
[1758206779714,1.3935,4599.3,4599.2,4.0032]
[1758206779911,1.6165,4599.3,4599.2,4.0032]
[1758206780114,1.6165,4599.3,4599.2,0.3948]
[1758206780509,1.6165,4599.3,4599.2,1.4078]
[1758206781015,1.005,4599.3,4599.2,1.4078]
[1758206781209,0.6229,4599.9,4599.3,0.6124]
[1758206781408,1.75478169,4599.8,4599.7,1.4078]
[1758206781716,1.005,4599.8,4599.7,1.4078]
[1758206781923,0.223,4599.8,4599.7,4.6156]
[1758206782111,1.6165,4599.8,4599.2,3.8202]
[1758206782312,0.3821,4599.3,4599.2,4.6156]
[1758206782526,0.224,4599.3,4599.2,4.6156]
[1758206783119,0.3821,4600.0,4599.9,0.7954]
[1758206783321,0.6061,4600.0,4599.9,1.4078]
[1758206783622,35.219,4600.3,4600.0,0.8444]
[1758206783829,36.224,4600.3,4600.2,1.4078]
[1758206784014,36.8365,4600.3,4600.2,1.4078]
[1758206784215,36.8365,4600.3,4600.2,0.3948]
[1758206784525,0.3821,4599.9,4599.8,1.4078]
[1758206784825,1.229,4599.9,4599.8,1.4078]
[1758206785119,1.229,4599.9,4599.0,0.232]
[1758206785120,1.6175,4599.9,4599.3,0.6124]
[1758206785326,1.6175,4599.9,4599.2,0.0217]
[1758206785524,1.3935,4599.3,4599.2,0.0217]
[1758206785823,1.6175,4599.3,4599.2,0.0217]
[1758206786826,1.6175,4599.3,4599.2,0.4165]
[1758206787418,0.6229,4599.7,4599.3,0.6124]
[1758206787622,0.224,4599.6,4599.5,1.4078]
[1758206788016,0.6357,4600.0,4599.9,0.3948]
[1758206788224,0.6061,4600.0,4599.9,1.0072]
[1758206788420,0.9946,4600.0,4599.9,0.3948]
[1758206788725,1.6175,4600.0,4599.9,0.7954]
[1758206788928,3.2078,4600.4,4599.9,1.4078]
[1758206789224,4.2128,4600.9,4600.8,0.7954]
[1758206789418,1.46273511,4600.9,4600.8,1.4078]
[1758206789725,1.229,4600.9,4600.8,1.4078]
[1758206789928,1.6175,4600.9,4600.8,0.7954]
[1758206790123,0.9946,4600.9,4600.3,0.6124]
[1758206790428,0.9946,4600.9,4600.1,4.215]
[1758206790429,1.005,4600.2,4600.1,4.215]
[1758206790621,1.6175,4600.2,4600.1,4.215]
[1758206790822,0.8469,4600.2,4600.1,3.8202]
[1758206791029,0.8469,4600.2,4600.1,3.2078]
[1758206791326,0.8469,4600.2,4599.8,0.6124]
[1758206791529,0.224,4600.2,4599.8,0.6124]
[1758206791821,0.224,4600.2,4599.6,3.2078]
[1758206792024,0.2536,4600.0,4599.6,3.2078]
[1758206792422,0.2536,4600.0,4599.5,2.1734]
[1758206792423,0.6229,4599.9,4599.5,2.1734]
[1758206792725,0.6229,4599.9,4599.5,2.7858]
[1758206792929,0.6229,4599.9,4599.5,2.1734]
[1758206793319,1.3935,4599.6,4599.5,2.1734]
[1758206793629,0.3821,4599.3,4599.2,0.4165]
[1758206793928,1.005,4599.3,4599.2,1.4078]
[1758206795928,1.3935,4599.3,4599.2,1.4078]
[1758206796118,0.224,4599.5,4599.3,0.5931]
[1758206796324,0.224,4599.5,4599.4,1.3881]
[1758206796524,1.2161,4599.5,4599.4,1.3881]
[1758206796831,1.6339,4599.5,4599.4,1.3881]
[1758206797027,1.8804,4599.5,4599.4,0.795]
[1758206797724,1.6339,4599.5,4599.4,1.3881]
[1758206798120,1.6339,4599.5,4599.4,0.3959]
[1758206798324,0.8275,4599.4,4599.3,0.3959]
[1758206798531,1.4099,4599.4,4599.3,0.3959]
[1758206799229,1.4099,4599.4,4599.3,0.795]
[1758206799532,1.4099,4599.4,4599.3,1.3881]
[1758206800235,0.224,4599.5,4599.4,0.5931]
[1758206800532,0.224,4599.5,4599.4,1.3881]
[1758206800835,0.9921,4599.5,4599.4,1.3881]
[1758206801724,1.4099,4599.5,4599.4,1.3881]
[1758206802434,1.6564,4599.5,4599.4,0.795]
[1758206802631,0.2465,4599.0,4598.9,0.0217]
[1758206802840,1.8804,4599.0,4598.9,0.0217]
[1758206803137,1.4099,4598.8,4598.7,2.5693]
[1758206803338,1.4099,4598.8,4598.7,3.5615]
[1758206803736,0.5824,4598.7,4598.6,3.2078]
[1758206803937,1.4099,4598.7,4598.6,3.6037]
[1758206804133,0.9921,4598.7,4598.6,4.5959]
[1758206804332,0.9921,4599.3,4599.2,0.795]
[1758206804533,2.39477285,4599.3,4599.2,0.3959]
[1758206804734,0.8275,4599.0,4598.9,0.989]
[1758206804934,2.18302871,4599.0,4598.9,0.3959]
[1758206805142,1.6339,4599.0,4598.9,0.3959]
[1758206805336,1.6339,4599.0,4598.9,1.3881]
[1758206805838,0.6337,4599.0,4598.9,1.3881]
[1758206806041,0.5824,4599.4,4598.9,1.3881]
[1758206806242,0.9921,4599.0,4598.9,1.3881]
[1758206806434,1.4099,4599.0,4598.9,1.3881]
[1758206806629,0.224,4599.0,4598.9,0.795]
[1758206806836,0.224,4599.0,4598.9,1.3881]
[1758206807237,0.6337,4599.0,4598.9,1.3881]
[1758206807538,0.5824,4598.9,4598.6,3.8009]
[1758206807842,1.4099,4598.7,4598.6,4.1968]
[1758206808241,1.4099,4598.7,4598.6,3.6037]
[1758206809137,1.6339,4598.7,4598.6,3.6037]
[1758206809537,1.6339,4598.7,4598.6,4.0028]
[1758206810239,0.224,4598.7,4598.6,4.5959]
[1758206810438,0.5824,4599.4,4598.7,0.5931]
[1758206810637,1.4099,4599.4,4599.3,0.3959]
[1758206810944,2.39498032,4599.4,4598.9,0.5931]
[1758206811239,2.17098032,4599.3,4599.2,1.3881]
[1758206811441,2.39498032,4599.3,4599.2,1.3881]
[1758206811642,0.52674823,4599.3,4599.2,1.3881]
[1758206811937,0.5824,4600.3,4599.8,1.3881]
[1758206812146,0.9921,4600.1,4600.0,4.0028]
[1758206812546,0.4097,4600.1,4600.0,4.5959]
[1758206812736,0.6337,4600.1,4600.0,4.5959]
[1758206812941,1.2161,4600.1,4600.0,4.5959]
[1758206813136,1.6339,4600.1,4600.0,3.2078]
[1758206813344,0.2465,4600.0,4599.4,3.2078]
[1758206813543,0.9921,4599.5,4599.4,4.5959]
[1758206813932,0.9921,4599.5,4599.4,1.3881]
[1758206814139,1.4099,4599.5,4599.4,1.3881]
[1758206814642,1.4099,4599.5,4599.4,0.795]
[1758206814643,1.6564,4599.5,4599.4,0.795]
[1758206815038,1.4099,4599.5,4599.4,1.3881]
[1758206817545,1.6447,4599.5,4599.4,0.3959]
[1758206817949,1.6447,4599.5,4599.0,0.6124]
[1758206818748,1.6637,4599.5,4599.4,1.4084]
[1758206818950,1.4289,4599.5,4599.4,1.4084]
[1758206819354,1.6637,4599.5,4599.4,1.4084]
[1758206820553,1.0623,4599.5,4598.9,3.8202]
[1758206820847,1.6282,4599.0,4598.9,3.2078]
[1758206821045,1.8512,4599.0,4598.9,4.6162]
[1758206821245,2.14357217,4599.0,4598.9,4.6162]
[1758206821549,1.6164,4599.0,4598.9,4.6162]
[1758206822553,1.8512,4599.0,4598.9,4.6162]
[1758206822753,2.37837669,4599.0,4598.9,4.0038]
[1758206822954,2.37837669,4599.0,4598.9,3.6098]
[1758206823357,2.61330646,4599.0,4598.5,0.6124]
[1758206823655,1.3934,4598.6,4598.5,1.4084]
[1758206824451,0.4578,4599.0,4598.5,1.4084]
[1758206824452,0.4578,4599.0,4598.5,1.6385]
[1758206824658,1.92050709,4598.9,4598.8,0.796]
[1758206825051,0.792,4598.6,4598.5,1.0144]
[1758206825357,1.3934,4598.6,4598.5,1.4084]
[1758206825851,0.2507,4598.5,4598.2,2.1734]
[1758206826055,1.4256,4598.3,4598.2,2.5806]
[1758206826445,1.4256,4598.3,4598.2,0.8139]
[1758206827451,1.4256,4598.3,4598.2,1.4413]
[1758206829357,0.2348,4599.0,4598.3,0.6274]
[1758206829557,1.2561,4599.0,4598.9,1.4413]
[1758206829755,2.64567561,4599.0,4598.9,1.4413]
[1758206830853,2.64567561,4599.0,4598.9,0.8139]
[1758206831255,2.64567561,4599.0,4598.5,0.6274]
[1758206831465,1.4256,4598.6,4598.5,0.4072]
[1758206832963,1.95316577,4598.6,4598.5,0.4072]
[1758206833365,0.7989,4598.3,4598.2,3.615]
[1758206833564,1.6486,4598.3,4598.2,0.4072]
[1758206833766,1.6486,4598.3,4597.7,4.0217]
[1758206833767,0.3946,4597.8,4597.7,4.0217]
[1758206833959,1.6486,4597.8,4597.7,4.6491]
[1758206834962,0.223,4597.8,4597.7,4.6491]
[1758206835262,0.6176,4597.8,4597.7,4.6491]
[1758206835764,1.2443,4597.8,4597.7,4.6491]
[1758206836063,1.6486,4597.8,4597.7,4.6491]
[1758206836264,1.6486,4597.8,4597.7,3.2078]
[1758206836461,0.2507,4597.5,4597.1,3.2078]
[1758206836653,0.3946,4596.7,4596.6,1.4413]
[1758206836857,1.0213,4596.7,4596.6,1.4413]
[1758206837060,0.3946,4596.7,4596.6,1.4413]
[1758206837263,0.223,4596.8,4596.6,1.4413]
[1758206837464,0.223,4596.8,4596.7,1.4413]
[1758206837666,1.2443,4596.8,4596.7,1.4413]
[1758206837967,0.6176,4596.8,4596.7,1.4413]
[1758206838162,1.2443,4596.8,4596.7,1.4413]
[1758206838367,1.6486,4596.8,4596.7,1.4413]
[1758206838569,0.223,4596.8,4596.7,1.4413]
[1758206839164,1.2443,4596.8,4596.7,1.4413]
[1758206839662,0.6176,4596.8,4596.7,1.4413]
[1758206839870,1.6486,4596.8,4596.7,1.4413]
[1758206840067,1.6486,4596.8,4596.7,0.8139]
[1758206840463,1.6486,4596.8,4596.7,1.4413]
[1758206840663,1.6486,4596.8,4596.7,0.8139]
[1758206841066,1.6486,4596.8,4596.7,1.4413]
[1758206841268,0.223,4596.8,4596.7,1.4413]
[1758206841874,0.6176,4596.8,4596.7,1.4413]
[1758206842067,1.6486,4596.8,4596.7,0.4072]
[1758206842579,1.6486,4596.8,4596.7,1.4413]
[1758206843572,1.6486,4596.8,4596.7,0.8139]
[1758206843977,1.6486,4596.8,4596.7,0.4072]
[1758206844573,1.6486,4596.8,4596.7,1.4413]
[1758206845270,1.4256,4596.8,4596.7,1.4413]
[1758206845471,0.6267,4597.6,4597.5,0.4072]
[1758206845673,35.4927,4598.0,4597.8,1.4413]
[1758206845674,1.0213,4597.9,4597.8,1.4413]
[1758206845878,1.4256,4597.9,4597.3,3.8352]
[1758206846168,35.242,4598.0,4597.9,0.6274]
[1758206846374,1.4256,4598.3,4598.2,1.4413]
[1758206846769,1.6486,4598.3,4598.2,1.4413]
[1758206846971,1.0213,4599.4,4599.3,0.4067]
[1758206847166,0.3946,4600.0,4599.9,1.4413]
[1758206847370,1.4256,4600.0,4599.9,4.0217]
[1758206847572,1.6763,4600.0,4599.9,4.0217]
[1758206847971,1.0213,4601.0,4600.9,1.4413]
[1758206848172,1.2443,4601.0,4600.9,1.4413]
[1758206848477,1.6486,4601.0,4600.9,1.4413]
[1758206848872,1.4256,4601.0,4600.9,1.4413]
[1758206849179,35.6376,4601.8,4601.7,0.4072]
[1758206849477,36.8926,4601.8,4601.7,4.0217]
[1758206849671,36.8926,4601.8,4601.7,3.2078]
[1758206850067,0.2507,4601.5,4601.1,3.2078]
[1758206850272,0.2507,4601.5,4600.7,0.6274]
[1758206850273,0.7989,4601.2,4600.7,0.6274]
[1758206850478,1.0213,4600.8,4600.7,1.4413]
[1758206850871,1.0213,4600.8,4600.7,0.4072]
[1758206850872,1.4256,4600.8,4600.7,0.4072]
[1758206851072,0.7989,4600.8,4600.1,3.2078]
[1758206851272,1.4256,4600.2,4600.1,0.4072]
[1758206851473,1.6486,4600.2,4600.1,1.4413]
[1758206851774,1.2443,4600.2,4600.1,1.4413]
[1758206852079,0.223,4600.2,4600.1,4.6491]
[1758206852482,1.6486,4600.2,4600.1,0.4072]
[1758206852874,1.6486,4600.2,4599.6,3.2078]
[1758206852875,0.6267,4600.1,4599.6,3.2078]
[1758206853075,1.4256,4599.7,4599.3,2.8008]
[1758206853370,0.6267,4599.4,4599.3,2.1734]
[1758206853576,0.223,4599.7,4599.3,2.1734]
[1758206853577,0.2507,4602.0,4599.6,0.8139]
[1758206853879,0.3946,4599.7,4599.6,0.8139]
[1758206854079,1.2443,4599.7,4599.6,0.8139]
[1758206854275,1.6486,4599.7,4599.3,0.6274]
[1758206854475,0.3946,4599.0,4598.9,3.615]
[1758206854681,0.223,4599.1,4599.0,1.4413]
[1758206855283,1.6486,4599.1,4599.0,0.8139]
[1758206855875,1.6486,4599.1,4599.0,0.4072]
[1758206856080,0.5824,4598.9,4598.3,3.2078]
[1758206856271,0.9971,4598.1,4598.0,0.767]
[1758206856578,0.7902,4597.8,4597.7,2.5628]
[1758206856782,0.4147,4597.8,4597.7,3.5255]
[1758206856985,0.5824,4598.0,4597.7,2.9404]
[1758206857281,0.5824,4598.0,4597.9,0.767]
[1758206857282,1.3726,4598.0,4597.9,0.767]
[1758206857679,1.6,4598.0,4597.5,0.5851]
[1758206857986,0.5824,4597.4,4596.8,0.5851]
[1758206858183,0.5824,4597.2,4596.8,0.5851]
[1758206858377,0.2274,4597.5,4597.0,0.5851]
[1758206858689,0.223,4597.4,4597.3,3.7929]
[1758206860478,0.18,4597.4,4597.3,3.7929]
[1758206860678,0.8098,4598.0,4597.3,3.7929]
[1758206860885,0.175,4597.4,4597.3,3.7929]
[1758206861476,0.197,4597.5,4597.4,0.5851]
[1758206861677,3.7902,4598.4,4597.6,0.5851]
[1758206861883,0.223,4598.3,4597.6,0.5851]
[1758206862583,0.5824,4598.2,4597.6,0.5851]
[1758206862882,0.2274,4598.0,4597.2,0.5851]
[1758206863088,0.5824,4597.8,4597.2,0.5851]
[1758206863288,0.4147,4597.3,4597.2,0.9745]
[1758206863492,0.9971,4597.3,4597.2,0.9745]
[1758206863690,0.9971,4597.3,4597.2,1.3521]
[1758206864084,1.3726,4597.3,4597.0,0.0217]
[1758206864392,4.5804,4597.3,4597.0,0.0217]
[1758206865488,0.5824,4597.2,4597.0,0.0217]
[1758206865688,0.223,4597.1,4597.0,1.3738]
[1758206866091,0.2274,4597.5,4597.0,0.7887]
[1758206866291,0.223,4597.4,4597.1,0.5851]
[1758206866594,0.4147,4597.4,4597.3,1.3521]
[1758206866794,0.6377,4597.4,4597.3,1.3521]
[1758206867190,1.2201,4597.4,4597.3,1.3521]
[1758206867586,0.2274,4598.0,4597.3,1.3521]
[1758206867788,0.5824,4597.9,4597.4,0.5851]
[1758206867990,0.4147,4597.9,4597.8,1.3521]
[1758206868390,3.2078,4598.2,4597.9,0.5851]
[1758206868594,3.2078,4598.2,4598.0,1.3521]
[1758206868897,36.4581,4598.1,4598.0,1.3521]
[1758206869285,36.4581,4598.1,4598.0,0.767]
[1758206869286,36.8336,4598.1,4598.0,0.767]
[1758206869490,36.6106,4598.1,4598.0,0.767]
[1758206869692,36.8336,4598.1,4598.0,0.767]
[1758206870096,36.8336,4598.1,4598.0,0.3894]
[1758206870297,0.9971,4597.3,4597.2,3.5972]
[1758206870489,0.223,4597.3,4597.2,4.5599]
[1758206871390,0.6377,4597.3,4597.2,4.5599]
[1758206871996,0.223,4597.3,4597.2,4.5599]
[1758206872294,0.6377,4597.3,4597.2,4.5599]
[1758206872591,0.223,4597.3,4597.2,4.5599]
[1758206874097,1.3726,4597.8,4597.7,0.3894]
[1758206874299,1.5956,4597.8,4597.7,0.3894]
[1758206874999,1.5956,4597.8,4597.3,0.5851]
[1758206876500,0.6107,4597.7,4597.2,3.2078]
[1758206876801,0.6107,4597.6,4597.2,4.0088]
[1758206877101,0.223,4597.8,4597.2,4.0088]
[1758206877102,0.8337,4597.8,4597.6,0.5974]
[1758206877394,0.223,4597.7,4597.6,1.3984]
[1758206877599,1.607,4597.7,4597.6,1.3984]
[1758206878501,35.238,4598.1,4597.7,0.5974]
[1758206878699,35.6081,4598.1,4598.0,1.3984]
[1758206878900,0.2459,4598.0,4597.3,0.5974]
[1758206879195,1.384,4597.9,4597.8,0.3913]
[1758206879601,1.384,4597.9,4597.8,1.3984]
[1758206881605,36.0717,4598.1,4597.9,0.5974]
[1758206881806,0.3701,4598.0,4597.9,1.3984]
[1758206882004,0.9808,4598.0,4597.9,1.3984]
[1758206882197,0.9808,4598.0,4597.7,3.2078]
[1758206882198,35.238,4598.1,4598.0,0.8368]
[1758206882399,35.461,4598.1,4598.0,1.6378]
[1758206882599,0.223,4598.1,4598.0,1.6378]
[1758206882801,0.5931,4598.1,4598.0,1.6378]
[1758206883093,0.5931,4598.1,4598.0,1.3984]
[1758206883292,0.6107,4598.5,4598.0,1.3984]
[1758206883498,0.6107,4598.3,4598.2,0.3913]
[1758206883705,0.6107,4598.6,4598.3,0.5974]
[1758206883913,1.2038,4598.5,4598.4,1.3984]
[1758206884106,1.8529,4598.5,4598.4,0.801]
[1758206885103,1.8529,4598.5,4598.4,0.3913]
[1758206885300,2.37960552,4598.5,4598.4,0.3913]
[1758206885500,1.8529,4598.5,4598.4,0.3913]
[1758206886102,0.3806,4597.8,4597.7,4.5735]
[1758206886297,1.5706,4597.8,4597.7,0.7763]
[1758206886502,1.3476,4597.2,4597.1,3.5799]
[1758206886704,1.5706,4597.2,4597.1,3.5799]
[1758206887303,1.5706,4597.2,4597.1,0.3721]
[1758206887600,1.5706,4597.2,4597.0,0.0217]
[1758206887801,1.0092,4597.2,4597.0,0.0217]
[1758206888002,0.942,4597.1,4597.0,1.3874]
[1758206888301,1.3476,4597.1,4597.0,1.3874]
[1758206888504,1.3476,4597.1,4597.0,1.3657]
[1758206888704,1.3476,4597.1,4597.0,0.3721]
[1758206889409,0.223,4597.2,4597.1,0.5894]
[1758206889705,0.223,4597.2,4597.1,1.3657]
[1758206890304,1.165,4597.2,4597.1,1.3657]
[1758206890506,1.5706,4597.2,4597.1,0.3721]
[1758206891008,0.6036,4597.2,4597.1,1.3657]
[1758206891508,3.7692,4597.8,4597.2,0.5894]
[1758206891708,0.223,4597.4,4597.3,1.3657]
[1758206891909,0.223,4597.4,4597.3,4.5735]
[1758206892108,0.5614,4598.3,4597.8,0.5894]
[1758206892310,0.3806,4597.9,4597.8,1.3657]
[1758206892607,0.223,4597.9,4597.8,0.7763]
[1758206893008,0.223,4597.9,4597.8,1.3657]
[1758206893202,1.5706,4597.9,4597.8,1.3657]
[1758206893510,1.165,4597.9,4597.8,1.3657]
[1758206893707,1.165,4597.9,4597.8,0.3721]
[1758206893708,1.5706,4597.9,4597.8,0.3721]
[1758206893903,1.5706,4597.9,4597.3,4.1693]
[1758206893904,0.3806,4597.4,4597.3,4.1693]
[1758206894105,1.165,4597.4,4597.3,4.5735]
[1758206894310,1.5706,4597.4,4597.3,4.5735]
[1758206894517,0.7844,4597.4,4597.3,4.5735]
[1758206894807,0.223,4597.4,4597.3,4.5735]
[1758206895512,1.5706,4597.4,4597.3,3.9841]
[1758206895708,1.0092,4597.4,4596.9,0.6111]
[1758206895906,0.5614,4597.2,4597.1,1.3657]
[1758206896306,0.223,4597.4,4597.1,0.7763]
[1758206896505,0.942,4597.3,4597.2,1.3657]
[1758206896910,1.3476,4597.3,4597.2,0.7763]
[1758206897214,1.3476,4597.3,4597.2,0.3721]
[1758206897513,1.5784,4597.0,4596.9,0.3938]
[1758206897706,1.5784,4597.0,4596.9,0.0217]
[1758206897902,1.5784,4597.0,4596.9,0.3721]
[1758206898213,1.3476,4597.0,4596.9,1.3657]
[1758206898617,1.165,4597.0,4596.9,1.3657]
[1758206899616,3.7692,4597.4,4597.0,0.8171]
[1758206899918,0.6036,4597.3,4597.2,1.3657]
[1758206900309,0.3806,4597.3,4597.2,1.3657]
[1758206900504,0.223,4597.3,4597.2,1.3657]
[1758206900815,0.223,4597.3,4597.2,0.7763]
[1758206901415,0.223,4597.3,4597.2,1.3657]
[1758206902008,0.6036,4597.3,4597.2,1.3657]
[1758206902209,1.165,4597.3,4597.2,1.3657]
[1758206902411,1.3476,4597.3,4597.2,1.3657]
[1758206902610,1.5706,4597.3,4597.2,0.3721]
[1758206902816,0.7862,4597.2,4597.1,0.3721]
[1758206903009,1.3476,4597.2,4597.1,0.3721]
[1758206903814,1.3476,4597.2,4597.0,0.0217]
[1758206904013,0.75610858,4597.1,4597.0,0.0217]
[1758206904309,1.3476,4596.4,4596.3,2.1734]
[1758206904514,5.53410873,4596.4,4596.3,2.1734]
[1758206905119,5.53410873,4596.4,4595.3,3.64302256]
[1758206905319,0.942,4595.4,4595.3,5.00872256]
[1758206905518,0.223,4595.5,4595.3,5.00872256]
[1758206905813,0.223,4595.6,4595.5,0.8171]
[1758206906114,0.942,4596.2,4596.1,1.3657]
[1758206906315,1.3476,4597.0,4596.9,1.3657]
[1758206906508,0.223,4597.1,4596.9,0.7763]
[1758206906714,0.223,4597.1,4597.0,1.3657]
[1758206906913,0.6036,4597.1,4597.0,1.3657]
[1758206907208,0.223,4597.1,4597.0,1.5934]
[1758206907409,3.7692,4597.9,4597.1,0.5894]
[1758206907616,4.5554,4597.9,4597.8,0.3721]
[1758206907926,4.5554,4597.9,4597.2,0.5894]
[1758206907927,0.5614,4597.8,4597.2,0.5894]
[1758206908221,0.942,4597.3,4597.2,1.3657]